{"text_format":"3","workbook":"xlsx","n_sheets":18,"sheets":["1_osteosynteza podstawowa","2_rekonstrukcja oczodołu i środ","3_wiertła","4_dreny","5_wiertła 2","6_probówki","7_osteosynteza ortognatyka","8_śruby do bloków kostnych","9_osteosynteza resorbowalna","10_system rekonstrujcyjny żuchw","10a wiertła do systemu rekonstr","11_ostrza do pił","12 biomateriały","13_zakotwienia","14_ligatura","15_dreny piezo","16_monitoring","17_d t żuchwy"],"not_rendered":{"defined_names":3},"read":"whole","date_system":"1900"}

{"sheet":"1_osteosynteza podstawowa","index":0,"n_rows":90,"n_cols":10,"rows_kept":90,"merged":[[0,0,0,1],[82,1,82,9],[83,1,83,9],[84,1,84,11],[85,1,85,9],[86,1,86,9],[87,1,87,9]]}
["Pakiet 1"]
["L.p","Opis","ilość","wielkość opakowania","cena netto","cena brutto","wartość netto","vat","wartość brutto","zużycie za 8 m-cy"]
[null,"Śruby samowiercące IMF"]
[1,"Śruba tytanowa samowiercąca do wiązań międzyszczękowych z kołnierzem naśluzówkowym, imbusowa typu gwiazdka Ø 2,0 mm, dł.8 mm 2/op.",400,"szt"]
[2,"Śruba tytanowa samowiercąca do wiązań międzyszczękowych z kołnierzem naśluzówkowym, imbusowa typu gwiazdka Ø 2,0mm, dł. 11 mm 2/op.",400,"szt"]
[null,"Śruby do osteosyntezy systemu 2.0"]
[3,"Śruba impl. Samogwintująca imbusowa typu gwiazdka Ø 2mm, dł. 5, 7, 9, 11, 13, 15 mm do wyboru. Tytanowe",1800,"szt"]
[4,"Śruba impl. Samowiercąca imbusowa typu gwiazdka Ø 2mm, dł. 5, 7, 9 mm. do wyboru. Tytanowe",40,"szt"]
[5,"Śruba impl. Samogwintująca imbusowa typu gwiazdka Ø 2.3mm, dł. 5, 7, 9 mm. do wyboru. Tytanowe",90,"szt"]
[null,"Płytki do osteosyntezy system 2.0 klasyczny"]
[6,"Płytka prosta, regularna; tytanowa, grubość 1.0, oczka 16. Tytan",80,"szt"]
[null,"Płytki do osteosyntezy system 2.0 urazowy"]
[7,"Płytka L-kształtna 100°, ze skokiem 15mm, lewa i prawa, półsztywna, grubość 1.0mm, oczka 6. Tytan",3,"szt"]
[8,"Płytka L-kształtna 90°, ze skokiem 12mm, lewa i prawa, półsztywna, grubość 1.0mm, oczka 5. Tytan",15,"szt"]
[9,"Płytka L-kształtna 90°, ze skokiem 9 mm, lewa i prawa; tytanowa, grubość 1.0, oczka 4. Tytan",15,"szt"]
[10,"Płytka X-kształtna, z mostem 9 i 12mm, półsztywna, tytanowa, grubość 1.0, oczka 6. Tytan",5,"szt"]
[11,"Płytka kłykciowa, trapezowa; anatomicznie wstępnie wygięta;wąska i szeroka, tytanowa, grubość 1.0, oczek 4",10,"szt"]
[12,"Płytka kłykciowa, trapezowa; anatomicznie wstępnie wygięta;wąska i szeroka tytanowa, grubość 1.0, oczek 9",2,"szt"]
[13,"Płytka kłykciowa, kształtu Delta; kompresyjna, tytanowa, grubość 1.0, oczek 4",15,"szt"]
[14,"Płytka segmentowa, kompresyjna z mostami symetrycznymi i asymentrycznymi, grubość 1.0, oczka 2x4. Tytan",6,"szt"]
[15,"Płytka segmentowa, kompresyjna z dwoma mostami, grubość 1.0, oczka 2+2. Tytan",10,"szt"]
[16,"Płytka urazowa, 4 otworowa prosta z otworami kompresyjnymi i wzmocnionym mostem, grubość 1.0. Tytan",2,"szt"]
[17,"Płytka tytanowa 8 oczkowa kompresyjna z szerokim i wzmocnionym mostem dł.6 i 9 mm, 4 oczka w moście, grubość 1.0mm",2,"szt"]
[18,"Płytka tytanowa 10 oczkowa kompresyjna z szerokim i wzmocnionym mostem dł.12 mm, 4 oczka w moście, grubość 1.0mm",2,"szt"]
[19,"Płytka tytanowa, skręcona o 70°; tytanowa, lewa, prawa grubość 1.0, oczka 6",20,"szt"]
[20,"Śruba blokująca, tytanowa 2.0 dł. 05, 07, 09mm, głowa śruby blokująca się bezgwintowo, gniazdo imbusowe typu gwiazdka",20,"szt"]
[21,"Płytka profilowana do kąta żuchwy,  4 otworowa, 2 otwory ustawione pod kątem 25°, blokowana bezgwintowo, w wersji lewa i prawa do wyboru, tytanowa",2,"szt"]
[null,"Płytki do osteosyntezy system 2.0 ortognatyka"]
[22,"Płytka prosta, półsztywna, tytanowa, grubość 0,7, oczka 20.",4,"szt"]
[23,"Płytka L-kształtna 100°, ze skokiem 15mm, lewa i prawa, półsztywna, grubość 0,7mm, oczka 6. Tytan",2,"szt"]
[24,"Płytka L-kształtna 90°, ze skokiem 9, 12mm, lewa i prawa, półsztywna, grubość 0,7mm, oczka 4. Tytan",60,"szt"]
[25,"Minipłytka sagitalna, regulowana z dystansem suwaka 11,5 mm, 6 oczkowa, ramiona otwarte, profil 0.7mm, osteosynteza półsztywna, tytanowa.",2,"szt"]
[26,"Minipłytka sagitalna, regulowana z dystansem suwaka 17,5 mm 8 oczkowa, ramiona otwarte, grubość 0.7mm, osteosynteza półsztywna, tytan.",2,"szt"]
[27,"Minipłytka sagitalna zamknięta, regulowana 6 oczkowa prosta krótka i wydłużona, grubość 1.0mm, osteosyneza półsztywna, tytan",2,"szt"]
[29,"Wiertła do zamawianych długości śrub systemu 2.0mm, trzon cylindryczny",20,"szt"]
[null,"Anatomiczny system ortognatyczny 1.5/2.0"]
[30,"1.5 Pł., 4 oczk.,L lewa i prawa do wyboru,most max.03mm,gr 0.7",5,"szt"]
[31,"1.5 Pł., 4 oczk., L lewa i prawa do wyboru, most max.5mm, gr0.7",30,"szt"]
[32,"1.5 Pł., 6 oczk., L lewa i prawa do wyboru, most max. 5mm, gr0.7",8,"szt"]
[33,"1.5 Pł., 5 oczk., L lewa i prawa do wyboru, most max.7mm,gr0.7",20,"szt"]
[34,"1.5 Pł., 6 oczk., L lewa i prawa do wyboru, most max.7mm, gr0.7",10,"szt"]
[35,"1.5 Pł., 6 oczk., L lewa i prawa do wyboru, most max.10mm, gr0.7",6,"szt"]
[36,"1.5 Pł., 4 oczk., Z lewa i prawa do wyboru, 0mm, gr0.7",12,"szt"]
[37,"1.5 Pł., 6 oczk., Z lewa i prawa do wyboru, most max.5mm, gr0.7",48,"szt"]
[38,"1.5 Pł., 6 oczk., Z lewa i prawa do wyboru, most max.10mm, gr0.7",4,"szt"]
[39,"1.5 Płytka, 5 oczk., Y, most 0, 5, 10mm do wyboru, gr0.7",6,"szt"]
[41,"1.5 Płytka, 8 oczkowa, prosta, gr0.7",3,"szt"]
[43,"1.5 Śruba samowiercąca 4,5,6,7,9mm do wyboru, gniazdo imbusowe typu gwiazdka, śruby w klipsach.",450,"szt"]
[44,"1.5 Śruba korowa 4,5,6,7,9,11mm do wyboru, gniazdo imbusowe typu gwiazdka, śruby w klipsach",320,"szt"]
[45,"1.8 Śruba korowa 5,7,9,11 mm, do wyboru, gniazdo imbusowe typu gwiazdka, śruby w klipsach",25,"szt"]
[46,"2.0 Płytka sagitalna otwarta, most max.5mm lub 10 mm lub 15 mm, gr0.7 – do wyboru operatora",3,"szt"]
[47,"2.0 Płytka sagitalna zamknięta, most max.5mm, lub 10 mm lub 15 mm gr0.8 – do wyboru operatora",100,"szt"]
[48,"2.0 Płytka segm., 4x2 oczk.,kwadr.,gr1.0",3,"szt"]
[49,"2.0 Płytka bródkowa,6oczk,most max.05,10mm, gr1.0",3,"szt"]
[50,"2.0 Płytka bródkowa,6o.,wst.profil,0-10mm,gr0.6",5,"szt"]
[51,"2.0 Śruba samowiercąca 5,7,9mm do wyboru, gniazdo imbusowe typu gwiazdka, śruby w klipsach.",40,"szt"]
[52,"2.0 Śruba korowa 5-19 mm do wyboru, gniazdo imbusowe typu gwiazdka, śruby w klipsach",700,"szt"]
[53,"2.3 Śruba korowa 5,7mm, do wyboru, gniazdo imbusowe typu gwiazdka, śruby w klipsach",30,"szt"]
[null,"System 2.5 rekonstrukcyjny i urazowy"]
[55,"Śruba impl. samogwintująca Ø 2.5mm, dł. 6,8,10,12,14,16,18,20,22 mm. Do wyboru. Tytanowe",20,"szt"]
[56,"Śruba impl. samogwintująca „emergency”  Ø2.8mm, dł. 08,10,12,14 mm. Do wyboru. Tytanowe",3,"szt"]
[57,"Śruby blokujące się w płycie Ø2.5mm dł. 10,12,14,16,18,20 mm. Do wyboru. Tytanowe",3,"szt"]
[58,"Wiertła do zamawianych długości śrub systemu 2.5, trzon cylindryczny",2,"szt"]
[59,"Płytka urazowa wygięta 120° 3+3 oczka z możliwością kompresji, grubość 1.6mm. Tytan",1,"szt"]
[60,"Płytka urazowa wygięta 120° 4+4 oczka z możliwością kompresji, grubość 1.6mm. Tytan",1,"szt"]
[61,"Płytka urazowa 16 oczkowa prosta, oczka kompresyjne, grubość 1.6mm. Tytan",2,"szt"]
[62,"Płytka urazowa 16 oczkowa łuk, oczka kompresyjne, grubość 1.6mm. Tytan",1,"szt"]
[63,"Płytka urazowa 6, 8 oczkowa prosta, grubość 1.6mm, oczka z możliwością kompresji. Tytan",1,"szt"]
[64,"Płytka urazowa 6 oczkowa prosta z mostem, grubość 1.6mm, oczka z możliwością kompresji. Tytan",1,"szt"]
[65,"Płytka rekonstrukcyjna 16 oczkowa prosta, grubość 2.5mm, oczka owalne, nagwintowane. Tytan",1,"szt"]
[66,"Płytka rekonstrukcyjna 16 oczkowa łuk, grubość 2.5mm, oczka owalne, nagwintowane. Tytan",1,"szt"]
[67,"Płytka rekonstrukcyjna 12+5 oczkowa zakrzywiona prawa, lewa, grubość 2.5mm, oczka owalne, nagwintowane",1,"szt"]
[68,"Płytka rekonstrukcyjna 17+5 oczkowa zakrzywiona prawa, lewa, grubość 2.5mm, oczka owalne, nagwintowane",1,"szt"]
[69,"Proteza głowy kłykcia żuchwy tytanowa, pokryta węglem amorficznym odpornym na ścieranie z uchwytem głowy umożliwającym śródoperacyjną regulację wysokości, prawa, lewa. Komplet proteza + uchwyt.",1," kpl."]
[null,"Implanty system MODUS TriLock 2.0/2.3/2.5 mm"]
[70,"Płyta tytanowa, prosta, 20 otworowa, grubość 1.0mm,  blokowana w systemie trójpunktowego, bezgwintowego blokowania na docisk, pozwalająca na wprowadzenie śruby w zakresie kąta +/- 15 stopni.",5,"szt"]
[71,"Płyta tytanowa, prosta, 6 otworowa z mostem 9mm,  pod śruby 2.0/2.3/2.5 mm, grubość 1.3 mm, blokowana w systemie trójpunktowego, bezgwintowego blokowania na docisk, pozwalająca na wprowadzenie śruby w zakresie kąta +/- 15 stopni.",4,"szt"]
[72,"Płyta tytanowa, 8 otworowa z mostem 11mm, do kości atroficznej, anatomicznie ukształtowana, pod śruby 2.0/2.3/2.5 mm, grubość 1.3 mm, blokowana w systemie trójpunktowego, bezgwintowego blokowania na docisk, pozwalająca na wprowadzenie śruby w zakresie kąta +/- 15 stopni.",2,"szt"]
[73,"Płyta tytanowa, 10 otworowa z mostem 13mm, do kości atroficznej, anatomicznie ukształtowana,  pod śruby 2.0/2.3/2.5 mm, grubość 1.3 mm, blokowana w systemie trójpunktowego, bezgwintowego blokowania na docisk, pozwalająca na wprowadzenie śruby w zakresie kąta +/- 15 stopni.",2,"szt"]
[74,"Śruba tytanowa,  średnica 2.3mm,  dł. 07 mm, z otworem heksagonalnym, blokowana w systemie trójpunktowego, bezgwintowego blokowania na docisk",10,"szt"]
[75,"Śruba tytanowa,  średnica 2.3mm,  dł. 09 mm, z otworem heksagonalnym, blokowana w systemie trójpunktowego, bezgwintowego blokowania na docisk",10,"szt"]
[{"$nulls":6},{"$f":"SUM(G4:G81)","v":{"v":0,"d":"0.00 zł"}},null,{"$f":"SUM(I4:I81)","v":{"v":0,"d":"0.00 zł"}},{"v":0,"d":"0.00 zł"}]
[null,"Wymagania:"]
[null,"1. Dostawca zobowiązuje się  realizować zamówienie na zasadach banku implantów"]
[null,"2. Dostawca zobowiązuje się do dostarczenie wraz z wszczepami systemy do implantacji i serwis narzędzi,"]
[null,"3.Dostawca zobowiązuje się do przeszkolenia personelu medycznego w zakresie technik stosowania dostarczanych produktów."]
[null,"4. Dostawca zobowiązuje się dostarczyć  wszystkie wymienione w zamówieniu implanty i narzędzia"]
[null,"5. Dostawca zobowiązuje się uzupełnić zużyte implanty w banku implantów w ciągu 24 godzin."]
[]
[null,"komis"]

{"sheet":"2_rekonstrukcja oczodołu i środ","index":1,"n_rows":23,"n_cols":10,"rows_kept":23,"merged":[[0,0,0,1],[14,0,14,5],[15,1,15,9],[16,1,16,9],[17,1,17,11],[18,1,18,9],[19,1,19,9],[20,1,20,9]]}
["Pakiet 2"]
["L.p","Opis"," ilość ","jm","cena netto","cena brutto","wartość netto","vat","wartość brutto","zużycie za 8 m-cy"]
[1,"Śruba korowa Ø 1.5 mm, samowiercąca, uniwersalna - pasująca do płyt o profilu 0,4, 0,5, 0,7, 0,8 mm, dł. 3, 4, 5, 6, 8, 10, 12 mm, TAN, pakowana jednostkowo w klipie – do wyboru operatora",380,"szt."]
[2,"Śruba awaryjna Ø 1.8 mm, samogwintująca, dł. 3, 4, 5, 6, 8, 10, 12 mm , pakowana jednostkowo w klipie do wyboru operatora",12,"szt."]
[3,"Płytka radialna do rekonstrukcji dna ścian i dna oczodołu, profil 0,2, 0,3, 0,4 mm (do wyboru operatora), czysty tytan",7,"szt."]
[4,"Płytka tytanowa, trójwymiarowa, anatomiczna, do rekonstrukcji ścian i dna oczodołów, mała/duza, lewa/prawa, czysty tytan do wyboru operatora",3,"szt."]
[5,"Płytka resorbowalna do rekonstrukcji dna oczodołu 1.5, z możliwością fiksacji na dolnym brzegu oczodołu Orbital, profil 0,5 mm, mała/ średnia/ duża - do wyboru operatora, pakowana sterylnie, jednostkowo",14,"szt."]
[6,"Płytka polietylenowa do rekonstrukcji dna oczodołu, profil 0,8 mm, mała/ średnia/ duża, pakowana sterylnie, jednostkowo",2,"szt."]
[7,"Płytka adaptacyjna 1.5, 20 otworowa, grubości: 0,4; 0,5; 0,7; 0,8 mm ( do śródoperacyjnego wyboru operatora), czysty tytan",14,"szt."]
[8,"Płytka podoczodołowa 1.5, 12 otworowa, profil 0,4; 0,5; 0,7 mm ( do śródoperacyjnego wyboru operatora), czysty tytan",25,"szt."]
[9,"Płytka 1.5 typu podwójne Y, 6 otworowa, profil  0,4; 0,5; 0,7 mm (do śródoperacyjnego wyboru operatora), czysty tytan",4,"szt."]
[10,"Płytka 1.5 typu X, 4 oczkowa, profil 0,4; 0,5; 0,7 mm ( do śródoperacyjnego wyboru operatora), czysty tytan",6,"szt."]
[11,"Płytka 1.5 typu L, 7 oczkowa, prawa lub lewa profil 0,5; 0,7; 0,8 mm, ( do śródoperacyjnego wyboru operatora), czysty tytan",2,"szt."]
[12,"Siatka tytanowa, profil 0,4/0,6 mm, wymiar 100x 100 mm do wyboru operatora",5,"szt."]
["Suma",{"$nulls":5},{"$f":"SUM(G3:G14)","v":{"v":0,"d":"0.00 zł"}},null,{"$f":"SUM(I3:I14)","v":{"v":0,"d":"0.00 zł"}},{"v":0,"d":"0.00 zł"}]
[null,"Wymagania:"]
[null,"1. Dostawca zobowiązuje się  realizować zamówienie na zasadach banku implantów"]
[null,"2. Dostawca zobowiązuje się do dostarczenie wraz z wszczepami systemy do implantacji i serwis narzędzi,"]
[null,"3.Dostawca zobowiązuje się do przeszkolenia personelu medycznego w zakresie technik stosowania dostarczanych produktów."]
[null,"4. Dostawca zobowiązuje się dostarczyć  wszystkie wymienione w zamówieniu implanty i narzędzia"]
[null,"5. Dostawca zobowiązuje się uzupełnić zużyte implanty w banku implantów w ciągu 24 godzin."]
[]
[null,"komis"]

{"sheet":"3_wiertła","index":2,"n_rows":8,"n_cols":10,"rows_kept":8,"merged":[[0,0,0,1],[5,0,5,5],[7,1,7,9]]}
["Pakiet 3"]
["L.p","Opis","ilość","wielkość opakowania","cena netto","cena brutto","wartość netto","vat","wartość brutto","zużycie za 8 m-cy"]
[1," Wiertło typu Lindemann, Ti, 10 mm, dł. 4,5 cm ",5,"szt."]
[2," Wiertło typu Lindemann, Ti, 22 mm, dł. 6,5 cm ",20,"szt."]
[3," Wiertło typu Lindemann, Ti, 35 mm, dł. 8,0 cm ",10,"szt."]
["Suma",{"$nulls":5},{"$f":"SUM(G3:G5)","v":{"v":0,"d":"0.00 zł"}},null,{"$f":"SUM(I3:I5)","v":{"v":0,"d":"0.00 zł"}}]
[]
[null,"1. Wiertła muszą pasować do prostnic Aeskulap GD 450, GD 465, GD 455"]

{"sheet":"4_dreny","index":3,"n_rows":3,"n_cols":9,"rows_kept":3,"merged":[[0,0,0,1]]}
["Pakiet 4"]
["L.p","Opis","ilość","jm","cena netto","cena brutto","wartość netto","vat","wartość brutto"]
[1,"Przewód do irygacji pola operacyjnego pasujący do napędu Aesculap microspeed (GA 391) op-10szt",10,"op"]

{"sheet":"5_wiertła 2","index":4,"n_rows":22,"n_cols":10,"rows_kept":22,"merged":[[0,0,0,1],[18,1,18,9],[19,1,19,9],[20,1,20,9],[21,1,21,9]]}
["Pakiet 5"]
["L.p","Opis","ilość","wielkość opakowania","cena netto","cena brutto","wartość netto","vat","wartość brutto","zużycie za 2 m-cy"]
[1,"wiertło różyczka, średnica części pracującej 3,10 mm, ISO 031",10,"szt."]
[2,"wiertło różyczka, średnica części pracującej 4,00 mm, ISO 040",20,"szt."]
[3,"wiertło różyczka, średnica części pracującej 0,60 mm, ISO 006",10,"szt."]
[4,"wiertło różyczka, średnica części pracującej 0,80 mm, ISO 006",5,"szt."]
[5,"wiertło różyczka, średnica części pracującej 1,00 mm, ISO 006",10,"szt."]
[6,"wiertło różyczka, średnica części pracującej 1,40 mm, ISO 00",5,"szt."]
[7,"wiertło różyczka, średnica części pracującej 1,80 mm, ISO 009",10,"szt."]
[8,"wiertło różyczka, średnica części pracującej 2,30 mm, ISO 009",10,"szt."]
[9,"wiertło konikalne („gruszka”), średnica części pracującej – do wyboru 4,0; 5,0 lub 6,0 mm ",40,"szt."]
[10,"wiertło typu szczelinka",5,"szt."]
[11,"wiertło kulka diamentowa o śr 2,3 mm dł.70mm",2,"szt."]
[12,"wiertło kulka diamentowa o śr 5,0mm dł.70mm",2,"szt."]
[13,"wiertło kulka diamentowa o śr 6,0mm dł.70mm",1,"szt."]
[14,"wiertło kulka diamentowa o śr 7,0mm dł.70mm",2,"szt."]
[{"$nulls":6},{"$f":"SUM(G3:G16)","v":{"v":0,"d":"0.00 zł"}},null,{"$f":"SUM(I3:I16)","v":{"v":0,"d":"0.00 zł"}},{"v":0,"d":"0.00 zł"}]
[]
[null,"Wiertła muszą spełniać następujące wymagania:"]
[null,"1. Wiertła muszą pasować do prostnic Aeskulap GD 450, GD 465, GD 455. "]
[null,"2. Średnica trzonka wiertła 2.35 mm"]
[null,"3. Długość wiertła 70 mm"]

{"sheet":"6_probówki","index":5,"n_rows":7,"n_cols":9,"rows_kept":7,"merged":[[0,0,0,9],[4,0,4,5],[5,1,5,9],[7,1,7,9]]}
["Pakiet 6 Probówki do pozyskiwania dwóch frakcji fibryny bogatopłytkowej - A-PRF oraz I-PRF. "]
["L.p","Opis","ilość","jednostka miary ","cena netto","cena brutto","wartość netto","vat","wartość brutto"]
[1,"A-PRF",200,"szt"]
[2,"I-PRF",100,"szt"]
["Suma",{"$nulls":5},{"$f":"SUM(G3:G4)","v":{"v":0,"d":"0.00 zł"}},null,{"$f":"SUM(I3:I4)","v":{"v":0,"d":"0.00 zł"}}]
[]
[null,"Wirówka do uzyskiwania fibryny bogatopłytkowej PRF, PRF DUO SIMPLE "]

{"sheet":"7_osteosynteza ortognatyka","index":6,"n_rows":32,"n_cols":10,"rows_kept":32,"merged":[[0,0,0,1],[23,0,23,5],[25,1,25,9],[26,1,26,9],[27,1,27,11],[28,1,28,9],[29,1,29,9],[30,1,30,9]]}
["Pakiet 7"]
["L.p","Opis","ilość","wielkość opakowania","cena netto","cena brutto","wartość netto","vat","wartość brutto","zużycie za 8 m-cy"]
[1,"Śruba tytanowa, samowiercąca, typ pogłębiony krzyżak, system mini, śr. 2,0 mm, dł. 5, 7 mm do wyboru Zamawiającego. Śruby pakowane w klipach po 5 szt. Śruby przystosowana do wprowadzania umieszczonym pod kątem śrubokrętem.",300,"szt"]
[2,"Śruba tytanowa, samowiercąca, typ pogłębiony krzyżak, system mini, śr. 2,0 mm, dł. 9 mm. Śruby pakowane w klipach po 5 szt. Śruby przystosowana do wprowadzania umieszczonym pod kątem śrubokrętem.",10,"szt"]
[3,"Śruba tytanowa, samogwintująca, typ pogłębiony krzyżak, system mini, śr. 2,0 mm, dł. 5, 7, 9, 11 mm do wyboru Zamawiającego. Śruby pakowane w klipach po 5 szt. Śruby przystosowana do wprowadzania umieszczonym pod kątem śrubokrętem.",240,"szt"]
[4,"Śruba tytanowa, samogwintująca, typ pogłębiony krzyżak, system mini, śr. 2,0 mm, dł. 13, 15 mm do wyboru Zamawiającego. Śruby pakowane w klipach po 5 szt. Śruby przystosowana do wprowadzania umieszczonym pod kątem śrubokrętem.",40,"szt"]
[5,"Śruba tytanowa, samogwintująca, typ pogłębiony krzyżak, system mini, śr. 2,0 mm, dł. 17 mm. Śruby pakowane w klipach po 5 szt. Śruby przystosowana do wprowadzania umieszczonym pod kątem śrubokrętem.",10,"szt"]
[6,"Śruba tytanowa awaryjna, samogwintująca, typ pogłębiony krzyżak, system mini, śr. 2,3 mm, dł. 5, 7, 9 mm do wyboru Zamawiającego. Śruby pakowane w klipach po 5 szt. Śruby przystosowana do wprowadzania umieszczonym pod kątem śrubokrętem.",30,"szt"]
[7,"Śruba stalowa IMF, typ pogłębiony krzyżak, system mini, śr. 2,0 mm, dł. 8mm oraz 12 mm do wyboru Zamawiającego. Śruby przystosowana do wprowadzania umieszczonym pod kątem śrubokrętem.",10,"szt"]
[8,"Wiertło stalowe do prostnicy, spiralne z ogranicznikiem, system 2.0, śr. 1,5. Rozmiar do wyboru Zamawiającego",10,"szt"]
[9,"Wiertło stalowe do prostnicy, do systemu przezpoliczkowego, spiralne z ogranicznikiem, system 2.0, śr. 1,5. Rozmiar do wyboru Zamawiającego",4,"szt"]
[10,"Wiertło stalowe do śrubokręta kątowego, spiralne z ogranicznikiem, system 2.0, śr. 1,5. Rozmiar do wyboru Zamawiającego",10,"szt"]
[11,"Płytka tytanowa, do ortognatyki szczęki, system mini 2.0 mm, kształt \"L\", 4-otw., dwustronna, z naniesioną laserowo podziałką, gr. 0,8 mm, z mostem krótkim, średnim i długim do wyboru Zamawiającego",20,"szt"]
[12,"Płytka tytanowa, do ortognatyki szczęki, system mini 2.0 mm, kształt \"C\", 4-otw., dwustronna, z naniesioną laserowo podziałką, gr. 0,8 mm, z mostem krótkim i średnim do wyboru Zamawiającego",20,"szt"]
[13,"Płytka tytanowa, do ortognatyki szczęki, system mini 2.0 mm, kształt \"T\", 4-otw., dwustronna, z naniesioną laserowo podziałką, gr. 0,8 mm, z mostem krótkim i średnim do wyboru Zamawiającego",10,"szt"]
[14,"Płytka tytanowa, do ortognatyki żuchwy, system mini 2.0 mm, prosta, 4-otw., z naniesioną laserowo podziałką, gr. 1,0 mm, z mostem krótkim, średnim, długim i b. długim do wyboru Zamawiającego",30,"szt"]
[15,"Płytka tytanowa system mini 2.0 mm, do genioplastyki, \"wycięta\", odstęp 2, 3, 4, 6, 8, 10 mm do wyboru zamawiającego, gr. 0,8 mm 4 otwory",20,"szt"]
[16,"Płytka tytanowa system mini 2.0 mm, kształt \"L\" 100°, 5-otw., z mostem długim, gr. 0,7 mm, lewa i prawa do wyboru Zamawiającego",20,"szt"]
[17,"Płytka tytanowa system mini 2.0 mm, kształt \"L\" 90°, 4-otw., gr. 0,6 mm, z mostem krótkim, średnim i długim, lewa i prawa do wyboru Zamawiającego",50,"szt"]
[18,"Płytka tytanowa system mini 2.0 mm, prosta, 20-otw., gr. 1,0 mm",5,"szt"]
[19,"Płytka ze wzmocnionego stopu tytanu, system mini 2.0 mm, prosta, 4-otw., z mostem długim, gr. 1,0 mm",10,"szt"]
[20,"Płytka ze wzmocnionego stopu tytanu, system mini 2.0 mm, prosta, 17-otw., gr. 1,0 mm",5,"szt"]
[21,"Płytka sagitalna ze wzmocnionego stopu tytanu, system mini 2.0 mm, 6-otw., gr. 1,0 mm, w kształcie księżyca, z mostem krótkimamawiającego",10,"szt"]
["Suma",{"$nulls":5},{"$f":"SUM(G3:G23)","v":{"v":0,"d":"0.00 zł"}},null,{"$f":"SUM(I3:I23)","v":{"v":0,"d":"0.00 zł"}},{"v":0,"d":"0.00 zł"}]
[]
[null,"Wymagania:"]
[null,"1. Dostawca zobowiązuje się  realizować zamówienie na zasadach banku implantów"]
[null,"2. Dostawca zobowiązuje się do dostarczenie wraz z wszczepami systemy do implantacji i serwis narzędzi,"]
[null,"3. Dostawca zobowiązuje się do przeszkolenia personelu medycznego w zakresie technik stosowania dostarczanych produktów."]
[null,"4. Dostawca zobowiązuje się dostarczyć  wszystkie wymienione w zamówieniu implanty i narzędzia"]
[null,"5. Dostawca zobowiązuje się uzupełnić zużyte implanty w banku implantów w ciągu 24 godzin."]
[null,"komis"]

{"sheet":"8_śruby do bloków kostnych","index":7,"n_rows":14,"n_cols":10,"rows_kept":14,"merged":[[0,0,0,1],[4,0,4,5],[6,1,6,9],[7,1,7,9],[8,1,8,9],[9,1,9,9],[10,1,10,9],[11,1,11,9],[12,1,12,9]]}
["Pakiet 8"]
["L.p","Opis","ilość","wielkość opakowania","cena netto","cena brutto","wartość netto","vat","wartość brutto","zużycie za 8 m-cy"]
[1,"Śruby do mocowania bloków kostnych średnica 1,2 mm rozmiary 8,10,12,14 mm do śródoperacyjnego wyboru operatora",60,"szt. "]
[2,"wiertła do zamawianych długości śrub",4,"szt. "]
["Suma",{"$nulls":5},{"$f":"SUM(G3:G4)","v":{"v":0,"d":"0.00 zł"}},null,{"$f":"SUM(I3:I4)","v":{"v":0,"d":"0.00 zł"}},{"v":0,"d":"0.00 zł"}]
[]
[null,"Wymagania:"]
[null,"1. Dostawca zobowiązuje się  realizować zamówienie na zasadach banku implantów"]
[null,"2. Dostawca zobowiązuje się do przeszkolenia personelu medycznego w zakresie technik stosowania dostarczanego asortymentu."]
[null,"3. Dostawca zobowiązuje się dostarczyć  wszystkie wymienione w zamówieniu implanty i narzędzia."]
[null,"4. Dostawca zobowiązuje się uzupełnić zużyte implanty w banku implantów w ciągu 24 godzinY."]
[null,"5. Śruby do mocowania bloków kostnych wraz z instrumentarium do montażu śrub, kaseta chirurgiczna + niezbędne wiertła i śrubokręt   "]
[null,"Opis: tytanowe śruby do mocowania bloków kostnych kolor srebrny połączenia heksagonalne zewnętrzne i wewnętrzna antyrotacja, niski profil wyłonienia, samogwintujące. Rozmiary 8,10,12,14 mm.   Opis: tytanowe śruby do mocowania bloków kostnych kolor srebrny połączenia heksagonalne zewnętrzne i wewnętrzna antyrotacja, niski profil wyłonienia, samogwintujące. Rozmiary 8,10,12,14 mm.  "]
[null,"komis"]

{"sheet":"9_osteosynteza resorbowalna","index":8,"n_rows":20,"n_cols":10,"rows_kept":20,"merged":[[0,0,0,1],[11,0,11,5],[14,1,14,9],[15,1,15,9],[16,1,16,11],[17,1,17,9],[18,1,18,9],[19,1,19,9]]}
["Pakiet 9"]
["L.p","Opis","ilość","wielkość opakowania","cena netto","cena brutto","wartość netto","vat","wartość brutto","zużycie za 8 m-cy"]
[1,"Piny resorbowalne aplikowane metodą ultradźwiękową rozm 1,6x5 mm, piny z materiału resorbowalnego nie zawierającego glukozy, opakowanie zawiera 5 pinów w klipie, sterylne",2,"opak."]
[2,"Piny resorbowalne aplikowane metodą ultradźwiękową rozm 1,6x7 mm, piny z materiału resorbowalnego nie zawierającego glukozy, opakowanie zawiera 5 pinów w klipie, sterylne",2,"opak."]
[3,"Piny resorbowalne aplikowane metodą ultradźwiękową rozm 2,1x 5mm, piny z materiału resorbowalnego nie zawierającego glukozy, opakowanie zawiera 5 pinów w klipie, sterylne",2,"opak."]
[4,"Piny resorbowalne aplikowane metodą ultradźwiękową rozm 2,1x7 mm, piny z materiału resorbowalnego nie zawierającego glukozy, opakowanie zawiera 5 pinów w klipie, sterylne",2,"opak."]
[5,"Piny resorbowalne aplikowane metodą ultradźwiękową rozm 2,1x9 mm, piny z materiału resorbowalnego nie zawierającego glukozy, opakowanie zawiera 5 pinów w klipie, sterylne",2,"opak."]
[6,"Płytka resorbowalna prosta, 4 otworowa z przerwą, gr. 0,8 mm, płytka z materiału resorbowalnego nie zawierającego glukozy, sterylna",2,"szt."]
[7,"Płytka resorbowalna prosta, 8 otworowa, gr. 1,0 mm, płytka z materiału resorbowalnego nie zawierającego glukozy, sterylna",2,"szt."]
[8,"Płytka resorbowalna prosta, 22 otworowa, gr. 1,0 mm, płytka z materiału resorbowalnego nie zawierającego glukozy, sterylna",2,"szt."]
[9,"Wiertło stalowe typ Stryker do pinów resorb. do zamawianych długości i średnicy pinów",2,"szt."]
["Suma",{"$nulls":5},{"$f":"SUM(G3:G11)","v":{"v":0,"d":"0.00 zł"}},null,{"$f":"SUM(I3:I11)","v":{"v":0,"d":"0.00 zł"}},{"v":0,"d":"0.00 zł"}]
[]
[null,"komis"]
[null,"Wymagania:"]
[null,"1. Dostawca zobowiązuje się  realizować zamówienie na zasadach banku implantów"]
[null,"2. Dostawca zobowiązuje się do dostarczenie wraz z wszczepami systemy do implantacji i serwis narzędzi,"]
[null,"3. Dostawca zobowiązuje się do przeszkolenia personelu medycznego w zakresie technik stosowania dostarczanych produktów."]
[null,"4. Dostawca zobowiązuje się dostarczyć  wszystkie wymienione w zamówieniu implanty i narzędzia"]
[null,"5. Dostawca zobowiązuje się uzupełnić zużyte implanty w banku implantów w ciągu 24 godzin."]

{"sheet":"10_system rekonstrujcyjny żuchw","index":9,"n_rows":44,"n_cols":10,"rows_kept":44,"merged":[[0,0,0,1],[36,0,36,5],[39,1,39,9],[40,1,40,9],[41,1,41,11],[42,1,42,9],[43,1,43,9]]}
["Pakiet 10"]
["L.p","Opis","ilość","wielkość opakowania","cena netto","cena brutto","wartość netto","vat","wartość brutto","zużycie za 8 m-cy"]
[1,"Śruba pogłębiony krzyżak rozm. 2,0 długość 5, 7, 9, 11 mm do wyboru operatora, samotrzymająca się na śrubokręcie, samogwintująca, opakowanie zawiera 5 śrub w klipie",10,"opak."]
[2,"Śruba pogłębiony krzyżak rozm. 2,0 długość 13 mm, samotrzymająca się na śrubokręcie, samogwintująca, opakowanie zawiera 5 śrub w klipie",3,"opak."]
[3,"Śruba awaryjna pogłębiony krzyżak, samotrzymająca się na śrubokręcie,  rozm. 2,3 długość 5, 7, 9 mm do wyboru operatora, opakowanie zawiera 5 śrub w klipie",3,"opak."]
[4,"Płytka tytanowa, system mini 2,0mm, prosta, 4-otw., krótka z przerwą oraz długa z przerwą (w zależności od potrzeb), gr. 1,0 mm",4,"szt."]
[5,"Płytka tytanowa, system mini 2,0mm, prosta, 6-otw., gr. 1,0 mm",4,"szt."]
[6,"Płytka tytanowa, system mini 2,0mm, prosta, 16-otw., gr. 0,6 mm",4,"szt."]
[7,"Płytka tytanowa, system mini 2,0mm, prosta, 40-otw., gr. 1,0 mm",4,"szt."]
[8,"Płytka do wyrostka kłykciowego, 3D, kompresyjna, system mini 2,0mm, kształt romboidalny, rozm. 20x13mm, 5-otw., gr. 1,0mm",3,"szt."]
[9,"Płytka tytanowa do kąta żuchwy, system mini 2,0mm, prosta, 6-otw. W tym dwa otwory ślizgowe, gr. 1,5 mm",3,"szt."]
[10,"Płytka tytanowa, system mini 2,0mm, prosta, 40-otw., gr. 1,4 mm",3,"szt."]
[11,"Śruba tytanowa z nagwintowanym łbem, pogłębiony krzyżak, blokująca się w płycie, samogwintująca, rozm. 2,0 długość 5, 7, 9, 11, 13, 15 mm do wyboru operatora, opakowanie zawiera 5 śrub w klipie",12,"opak."]
[12,"Śruba tytanowa z nagwintowanym łbem, pogłębiony krzyżak, blokująca się w płycie, samogwintująca, rozm. 2,3 długość 5, 7, 9, 11, 13, 15 mm do wyboru operatora, opakowanie zawiera 5 śrub w klipie",5,"opak."]
[13,"Śruba pogłębiony krzyżak 2,3 długość 5, 7, 9, 11, 13, 15 mm do wyboru operatora, samotrzymająca się na śrubokręcie, samogwintująca, opakowanie zawiera 5 śrub w klipie",3,"opak."]
[14,"Śruba awaryjna pogłębiony krzyżak, samotrzymająca się na śrubokręcie,  rozm. 2,5 długość 5, 7, 9 mm, do wyboru operatora opakowanie zawiera 5 śrub w klipie",2,"opak."]
[15,"Mini płytka żuchwowa, tytanowa, grubość 1,0 mm, 14-otw., prosta, nagwintowane otwory",2,"szt."]
[16,"Płytka blokująca do wyrostka kłykciowego, 3D, system mini 2,0mm, kształt romboidalny, rozm. 20x13mm, 5-otw., gr. 1,0mm. Płytka z gwintowanymi otworami przystosowana do śrub blokujących oraz śrub standardowych.",1,"szt."]
[17,"Płytka żuchwowa, tytanowa do zespoleń kości, grubość 1,5 mm, 4 otw., prosta, krótka, nagwintowane otwory",2,"szt."]
[18,"Płytka żuchwowa, tytanowa do zespoleń kości, 4 otw., prosta, z przerwą,  długa, nagwintowane otwory",2,"szt."]
[19,"Płytka żuchwowa, tytanowa do zespoleń kości, grubość 1,5 mm, 6 otw., z przerwą,  nagwintowane otwory",2,"szt."]
[20,"Płytka żuchwowa, tytanowa do zespoleń kości, grubość 1,5 mm,, 4 otw.,zag., krótka, nagwintowane otwory",2,"szt."]
[21,"Płytka żuchwowa, tytanowa do zespoleń kości, grubość 1,5 mm,, 4-otw., zag., długa, nagwintowane otwory",2,"szt."]
[22,"Płytka żuchwowa, tytanowa do zespoleń kości, grubość 1,5 mm,, 6 otw., kątowa, nagwintowane otwory",2,"szt."]
[23,"Płytka żuchwowa, tytanowa do zespoleń kości, grubość 1,5 mm,, 8-otw., kątowa, nagwintowane otwory",2,"szt."]
[24,"Płytka żuchwowa, rekonstrukcyjna tytanowa, grubość 2,0 mm, 20-otw., prosta, nagwintowane otwory",1,"szt."]
[25,"Matryca do płytki rekonstrukcyjnej tytanowej, 20-otw., prostej",1,"szt."]
[26,"Płytka żuchwowa, rekonstrukcyjna tytanowa, grubość 2,0 mm, 6+ 20-otw., lewa, nagwintowane otwory",1,"szt."]
[27,"Płytka żuchwowa, rekonstrukcyjna tytanowa, grubość 2,0 mm, 6+ 20-otw., prawa, nagwintowane otwory",1,"szt."]
[28,"Matryca do płytka rekonstrukcyjnej tytanowej, 6+ 20-otw.          ",1,"szt."]
[29,"Płytka żuchwowa, rekonstrukcyjna tytanowa, grubość 2,0 mm, 6+ 20+6-otw., nagwintowane otwory",1,"szt."]
[30,"Matryca do płytki rekonstrukcyjnej tytanowej, 6+ 20+6-otw.,                  ",1,"szt."]
[31,"Płytka żuchwowa, rekonstrukcyjna tytanowa, grubość 2,0 mm, 6+ 20-otw., anat., nagwintowane otwory",1,"szt."]
[32,"Płytka żuchwowa, rekonstrukcyjna tytanowa, grubość 2,0 mm, 6+ 20-otw., prawa, anat., nagwintowane otwory",1,"szt."]
[33,"Matryca do  płytki rekonstrukcyjnej tytanowa, 6+ 20-otw          ",1,"szt."]
[34,"Płytka żuchwowa, rekonstrukcyjna tytanowa, grubość 2,0 mm, 6+ 20+6-otw., anat., nagwintowane otwory",1,"szt."]
[{"$nulls":6},{"$f":"SUM(G3:G36)","v":{"v":0,"d":"0.00 zł"}},null,{"$f":"SUM(I3:I36)","v":{"v":0,"d":"0.00 zł"}},{"v":0,"d":"0.00 zł"}]
[null,"komis"]
[]
[null,"Wymagania:"]
[null,"1. Dostawca zobowiązuje się  realizować zamówienie na zasadach banku implantów"]
[null,"2. Dostawca zobowiązuje się do dostarczenie wraz z wszczepami systemy do implantacji i serwis narzędzi,"]
[null,"3. Dostawca zobowiązuje się do przeszkolenia personelu medycznego w zakresie technik stosowania dostarczanych produktów."]
[null,"4. Dostawca zobowiązuje się uzupełnić zużyte implanty w banku implantów w ciągu 24 godzin."]

{"sheet":"10a wiertła do systemu rekonstr","index":10,"n_rows":15,"n_cols":10,"rows_kept":15,"merged":[[0,0,0,1],[14,0,14,5]]}
["Pakiet 10 a"]
["L.p","Opis","Zamawiana ilość na rok","wielkość opakowania","cena netto","cena brutto","wartość netto","vat","wartość brutto","zużycie za 8 m-cy"]
[1,"Wiertło stalowe spiralne z ogranicznikiem, 1,5x50x5 mm",1,"szt."]
[2,"Wiertło stalowe spiralne z ogranicznikiem, 1,5x50x7 mm",2,"szt."]
[3,"Wiertło stalowe spiralne z ogranicznikiem, 1,5x50x9 mm",2,"szt."]
[4,"Wiertło stalowe spiralne z ogranicznikiem, 1,5x50x11mm",2,"szt."]
[5,"Wiertło stalowe spiralne z ogranicznikiem, 1,5x50x20 mm",2,"szt."]
[6,"Wiertło stalowe, spiralne, system Stryker, 1.9x70 mm",2,"szt."]
[7,"Wiertło stalowe, spiralne, system Stryker, 1,9x105 mm",2,"szt."]
[8,"Wiertło stalowe, skrętne 1,9 mm, stop, 7mm/105 mm ",2,"szt."]
[9,"wiertła do śrubokrętu kątowego do śrub  systemu 2.0 mm oraz 2.3 mm",5,"szt."]
[10,"groty do śrubokrętu kątowego do śrub  systemu 2.0 mm oraz 2.3 mm",2,"szt."]
[11,"wiertła do śrubokrętu kątowego do systemu 2.0 mm oraz 2.3 mm , do systemu rekonstrukcji",5,"szt."]
[12,"groty do śrubokrętu kątowego do systemu 2.0 mm oraz 2.3 mm ,do systemu rekonstrukcji",2,"szt."]
["Suma",{"$nulls":5},{"$f":"SUM(G3:G14)","v":{"v":0,"d":"0.00 zł"}},null,{"$f":"SUM(I3:I14)","v":{"v":0,"d":"0.00 zł"}},{"v":0,"d":"0.00 zł"}]

{"sheet":"11_ostrza do pił","index":11,"n_rows":11,"n_cols":10,"rows_kept":11,"merged":[[0,0,0,1]]}
["Pakiet 11"]
["L.p","Opis","ilość","wielkość opakowania","cena netto","cena brutto","wartość netto","vat","wartość brutto","zużycie za 8 m-cy"]
[1,"Ostrze do piły AesCulap GB 391R i GB 130R:\ndługość całkowita 73 mm  \ndługość części pracującej 15 mm\nKształt części pracującej prostokąt",10,"szt."]
[2,"Ostrze do piły Aesculap GB 391R i GB 130R:\ndługość całkowita 85 mm  \ndługość części pracującej 27 mm \ngrubośc ostrza 0.4-0.6 mm  \nKształt części pracującej prostokąt",5,"szt."]
[3,"Ostrze do piły Aesculap GB 128 R:\nrozmiar części tnącej 9/40mm \nostrze dwustronne  \ngłębokość robocza 15mm  \nKształt części tnącej - wycinek koła",1,"szt."]
[4,"Ostrze do piły Aesculap GB 128 R:\nrozmiar części tnącej 8mm \nostrze jednostronne  \ngłębokość robocza 25mm  \nkształt części tnącej – prosta",1,"szt."]
[5,"Ostrze do piły Aesculap GD 305:\ndługość części pracującej 13 mm  \ngrubośc ostrza 0.3 mm  \nkształt części pracującej prostokąt ze sciętym bokiem",5,"szt."]
[6,"Ostrze do piły Aesculap GD 305:\ndługość części pracującej 20 mm  \ngrubośc ostrza 0.3 mm  \nKształt części pracującej prostokątno-trójkątna",5,"szt."]
[7,"Ostrze do piły Aesculap GD 305:\ndługość części pracującej 20 mm  \ngrubośc ostrza 0.3 mm  \nKształt części pracującej zaokrąglona",5,"szt."]
[8,"Specjalistyczny olej do konserwacji prostnic i pił Aesculap",10,"szt."]
[{"$nulls":6},{"$f":"SUM(G3:G10)","v":{"v":0,"d":"0.00 zł"}},null,{"$f":"SUM(I3:I10)","v":{"v":0,"d":"0.00 zł"}},{"v":0,"d":"0.00 zł"}]

{"sheet":"12 biomateriały","index":12,"n_rows":12,"n_cols":9,"rows_kept":12}
[null,"Pakiet 12 Biomateriały"]
["L.p","Opis","ilość","wielkość opakowania","cena netto","cena brutto","wartość netto","vat","wartość brutto"]
[1,"Resorbowalna, dwuwarstwowa błona zaporowa wytwarzaną z kolagenu wieprzowegowym 25x25 mm (6,25 cm²)",3,"szt."]
[2,"Resorbowalna, dwuwarstwowa błona zaporowa wytwarzaną z kolagenu wieprzowego wym 30x40 mm (12,00 cm²)",4,"szt."]
[3,"Naturalny, ksenogenny minerał kostny wytwarzany z części mineralnej kości wołowych  Granulat kości gąbczastej 1g m,małe granulki,objętość 2,0 cm³",2,"szt."]
[4,"Naturalny, ksenogenny minerał kostny wytwarzany z części mineralnej kości wołowych  Granulat kości gąbczastej 2g m,małe granulki,objętość 4,0 cm³",2,"szt."]
[5,"Naturalny, ksenogenny minerał kostny wytwarzany z części mineralnej kości wołowych  Granulat kości gąbczastej 1g m,duże  granulki,objętość 3,0 cm³",3,"szt."]
[6,"Naturalny, ksenogenny minerał kostny wytwarzany z części mineralnej kości wołowych  Granulat kości gąbczastej 2g m,duże  granulki,objętość 6,0 cm³",5,"szt."]
[7,"Blok kości gąbczastej wym.1x1x2cm, obiętość2,0 cm³",2,"szt."]
[{"$nulls":6},{"$f":"SUM(G3:G9)","v":{"v":0,"d":"0.00 zł"}},null,{"$f":"SUM(I3:I9)","v":{"v":0,"d":"0.00 zł"}}]
[null,"Wymagania:"]
[null,"1. dostawa jest realizowana w miarę zapotrzebowania Kliniki"]

{"sheet":"13_zakotwienia","index":13,"n_rows":13,"n_cols":11,"rows_kept":13,"merged":[[0,0,0,1],[8,1,8,9],[9,1,9,9],[10,1,10,11],[11,1,11,9],[12,1,12,9]]}
["Pakiet 13"]
["L.p","Opis","ilość","wielkość opakowania","cena netto","vat","cena brutto","wartość netto","vat","wartość brutto","zużycie za 8 m-cy"]
[1,"płytka ortodontycza do zakotwienia kostnego wyciągów szkieletowych do szczęki, długość do wyboru przez operatora",30,"szt."]
[2,"płytka ortodontycza do zakotwienia kostnego wyciągów szkieletowych do żuchwy, długość do wyboru przez operatora",20,"szt."]
[3," śruba mocująca samowiercąca 6 lub 7 mm (do wyboru operatora)",80,"szt."]
[{"$nulls":7},{"$f":"SUM(H3:H5)","v":{"v":0,"d":"0.00 zł"}},null,{"$f":"SUM(J3:J5)","v":{"v":0,"d":"0.00 zł"}},{"v":0,"d":"0.00 zł"}]
[]
[null,"komis"]
[null,"Wymagania:"]
[null,"1. Dostawca zobowiązuje się  realizować zamówienie na zasadach banku implantów"]
[null,"2. Dostawca zobowiązuje się do dostarczenie wraz z wszczepami systemy do implantacji i serwis narzędzi,"]
[null,"3. Dostawca zobowiązuje się do przeszkolenia personelu medycznego w zakresie technik stosowania dostarczanych produktów."]
[null,"4. Dostawca zobowiązuje się uzupełnić zużyte implanty w banku implantów w ciągu 24 godzin."]

{"sheet":"14_ligatura","index":14,"n_rows":6,"n_cols":11,"rows_kept":6,"merged":[[0,0,0,1]]}
["Pakiet 14"]
["L.p","Opis","ilość","wielkość opakowania","cena netto","vat","cena brutto","wartość netto","vat","wartość brutto","zużycie za 8 m-cy"]
[1,"szyna stomatologiczna 6-zaczepowa",50,"op.=2 szt.",{"$nulls":6},0]
[2,"drut stomatologiczny miękki 0,4 – 20 mb",12,"szt.=20mb",{"$nulls":6},0]
[3,"drut stomatologiczny miękki 0,5 – 30 mb",6,"szt.=30mb",{"$nulls":6},0]
[{"$nulls":7},{"$f":"SUM(H3:H5)","v":{"v":0,"d":"0.00 zł"}},null,{"$f":"SUM(J3:J5)","v":{"v":0,"d":"0.00 zł"}},{"v":0,"d":"0.00 zł"}]

{"sheet":"15_dreny piezo","index":15,"n_rows":8,"n_cols":9,"rows_kept":8,"merged":[[0,0,0,1]]}
["Pakiet 15"]
["L.p","Opis","ilość","jm","cena netto","cena brutto","wartość netto","vat","wartość brutto"]
[1,"Przewód do irygacji pola operacyjnego pasujący do napędu piezoelektrycznego Synthes op.-5szt",100,"szt"]
[2,"Końcówka piły do systemu piezoelektrycznego, sterylna , rozmiar 20.9x14,1x4,0x0,6mm",15,"szt"]
[3,"Końcówka piły do systemu piezoelektrycznego, sterylna , rozmiar 20,1x21,4x4,0x0,6mm",15,"szt"]
[4,"Końcówka diamentowa -zaokrąglona do systemu piezoelektrycznego, sterylna, rozmiar 21,9x12,4x1,8mm",5,"szt"]
[5,"Końcówka piły do systemu piezoelektrycznego, sterylna , okrągła, 38.9 x 5,0 mm x 0,6 mm ",10,"szt"]
[{"$nulls":6},{"$f":"SUM(G3:G7)","v":{"v":0,"d":"0.00 zł"}},null,{"$f":"SUM(I3:I7)","v":{"v":0,"d":"0.00 zł"}}]

{"sheet":"16_monitoring","index":16,"n_rows":6,"n_cols":10,"rows_kept":6,"merged":[[0,0,0,1]]}
["Pakiet 16"]
["L.p","Opis","ilość","wielkość opakowania","cena netto","cena brutto","wartość netto","vat ","wartość brutto","zużycie za 8 m-cy"]
[1,"Sonda stymulująca monopolarna jednorazowa do  monitoringu NIM Response 3.0 op-5szt",2,"op."]
[2,"Zestaw 2-kanałowy podwójnych elektrod podskórnych 12mm do  monitoringu NIM Response 3.0  op-5szt",2,"op."]
[3,"Zestaw 4-kanałowy podwójnych elektrod podskórnych 12mm do  monitoringu NIM Response 3.0  op-5szt",3,"op."]
[{"$nulls":6},{"$f":"SUM(G3:G5)","v":{"v":0,"d":"0.00 zł"}},null,{"$f":"SUM(I3:I5)","v":{"v":0,"d":"0.00 zł"}},{"v":0,"d":"0.00 zł"}]

{"sheet":"17_d t żuchwy","index":17,"n_rows":8,"n_cols":10,"rows_kept":8,"merged":[[0,0,0,1]]}
["Pakiet 17"]
["L.p","Opis","ilość","j.m.","cena netto","cena brutto","wartość netto","vat","wartość brutto","zużycie za 8 m-cy"]
[1,"Płytka tytanowa, prawa 6-oczkowa, lewa 6-oczkowa",4,"szt"]
[2,"Śruby mocujące, 9mm, 7mm ",24,"szt"]
[3,"Cylinder dystrakcyjny, 20mm",2,"szt"]
[4,"Śruby awaryjne - 9mm, 7mm ",6,"szt"]
[5,"Elastyczna przedłużka",2,"szt"]
[{"$nulls":6},{"$f":"SUM(G3:G7)","v":{"v":0,"d":"0.00 zł"}},null,{"$f":"SUM(I3:I7)","v":{"v":0,"d":"0.00 zł"}},{"v":0,"d":"0.00 zł"}]